Cogmind - Beta 11 @@@ ROGUE MODE // 2022.04.11 @ 17:54:10 Player: Decinym Result: Self-destructed Performance ------------- Evolutions (6) 3000 Regions Visited (22) 4400 Robots Destroyed (207) 1035 Value Destroyed (9746) 9746 Prototype IDs (60) 1200 Alien Tech Used (1) 200 Bonus (5775) 5775 TOTAL SCORE: 25356 Bonus ------- High Alert Combat Kills 939 Follower Combat Kills 301 Aligned with FarCom 300 Met Data Miner 300 Met Imprinter 300 Destroyed Z-Imprinter 1000 Triggered Deep Caves Wall 500 Exposed GOLEM Chamber 500 Met Warlord at Base 500 MAIN.C Attacked Warlord 500 Warlord Defense Kill 1194 Friendly Fire -559 Cogmind --------- Core Integrity 482/1150 Matter 248/300 Energy 6/100 System Corruption 22% Temperature Cool (0) Movement Hovering (56) Location -4/Factory Parts ------- > --- POWER (2) -------- (None) > --- PROPULSION (6) --- Assembled Alloy Leg Cooled Antigrav System Cooled Antigrav System > --- UTILITY (9) ------ Assembled Nanovents Assembled Nanovents Large Storage Unit Advanced Signal Interpreter Experimental Targeting Computer > --- WEAPON (3) ------- (None) > --- INVENTORY (15) --- Experimental Energy Well (5) Experimental Optical Array Advanced Sensor Array Experimental Core Analyzer Improved Armor Integrity Analyzer Improved Phase Shifter GAL Module Peak State ------------ > --- POWER ------------ Assembled Flux Generator > --- PROPULSION ------- Myomer Leg Myomer Leg Myomer Leg Enhanced Biometal Leg Assembled Alloy Leg Assembled Alloy Leg > --- UTILITY ---------- Advanced Heat Sink Assembled Nanovents Assembled Nanovents Large Storage Unit Assembled Biocell Array Experimental Targeting Computer Assembled Alloy Armor GOLEM Unit > --- WEAPON ----------- Assembled Focal Cannon Assembled Focal Cannon Assembled Focal Cannon > --- INVENTORY -------- Vortex Chain Reactor Myomer Leg Improved Antigrav System Cooled Antigrav System Cooled Antigrav System Experimental Energy Well Experimental Optical Array Experimental Core Analyzer Improved Armor Integrity Analyzer Improved Phase Shifter Firepult Heavy Shock Bomb Launcher GAL Module [Rating: 168] Favorites ----------- Power Assembled Flux Generator Engine Deuterium Engine Power Core Fission Core Reactor Assembled Flux Generator Propulsion Light Treads Treads Light Treads Leg Assembled Alloy Leg Hover Unit Hover Unit Utility Improved Cooling System Device Improved Cooling System Storage Large Storage Unit Processor Makeshift Salvage Targeting Computer Protection Assembled Alloy Armor Weapon Assembled Focal Cannon Energy Gun Heavy EM Shotgun Energy Cannon Assembled Focal Cannon Ballistic Gun KE Penetrator Ballistic Cannon Flak Cannon Launcher Heavy Missile Launcher Impact Weapon Makeshift Hammer Slashing Weapon Chainsword Build | -11 -10 -10 -10 -9 -8 -7 -7 -7 -7 -6 -6 -6 -6 -6 -6 -5 -5 -5 -5 -5 -4 -4 ------- Run | Scr Mat Min Exi Min Mat Fac Low Low Dat Pro Fac Low Low Zio Dee Pro Fac Upp Upp War Pro Fac Slots Evolved 12 | . . . . . 4 2 . . . . 2 . . . . . 2 . . . . 2 Power 1 | . . . . . . . . . . . 1 . . . . . . . . . . . Propulsion 4 | . . . . . 2 . . . . . . . . . . . 1 . . . . 1 Utility 7 | . . . . . 2 2 . . . . 1 . . . . . 1 . . . . 1 Weapon . | . . . . . . . . . . . . . . . . . . . . . . . Parts Attached 224 | . 6 12 . . 19 30 10 1 3 4 19 4 18 9 36 1 6 3 . 11 1 31 Power 18 | . . 2 . . 2 1 . . . . 5 . 3 2 1 . . . . . . 2 Engine 6 | . . 2 . . 2 1 . . . . . . . . 1 . . . . . . . Core 10 | . . . . . . . . . . . 5 . 3 2 . . . . . . . . Reactor 2 | . . . . . . . . . . . . . . . . . . . . . . 2 Propulsion 59 | . 2 4 . . 5 8 2 1 . 1 6 1 2 1 9 . 1 1 . 3 1 11 Treads 34 | . 2 2 . . 5 8 2 1 . 1 6 1 2 1 3 . . . . . . . Leg 19 | . . 2 . . . . . . . . . . . . 3 . 1 1 . 3 1 8 Wheel . | . . . . . . . . . . . . . . . . . . . . . . . Hover 6 | . . . . . . . . . . . . . . . 3 . . . . . . 3 Flight . | . . . . . . . . . . . . . . . . . . . . . . . Utility 86 | . 1 2 . . 4 11 4 . . 1 5 3 6 2 16 1 5 2 . 8 . 15 Device 41 | . . 1 . . 2 6 3 . . . 3 . . . 5 1 4 1 . 4 . 11 Storage 13 | . 1 . . . . 2 . . . . 1 . 4 . 3 . . . . 2 . . Processor 17 | . . 1 . . . 1 1 . . . 1 2 1 2 4 . 1 1 . 1 . 1 Hackware . | . . . . . . . . . . . . . . . . . . . . . . . Protection 15 | . . . . . 2 2 . . . 1 . 1 1 . 4 . . . . 1 . 3 Artifact . | . . . . . . . . . . . . . . . . . . . . . . . Weapon 61 | . 3 4 . . 8 10 4 . 3 2 3 . 7 4 10 . . . . . . 3 Energy Gun 18 | . . 1 . . 2 4 1 . 1 1 1 . 3 1 3 . . . . . . . Energy Cannon 24 | . 2 1 . . 3 3 2 . 2 1 1 . 1 2 4 . . . . . . 2 Ballistic Gun 4 | . 1 . . . 2 . . . . . . . 1 . . . . . . . . . Ballistic Cannon 1 | . . . . . 1 . . . . . . . . . . . . . . . . . Launcher 11 | . . 2 . . . 3 . . . . 1 . 2 . 2 . . . . . . 1 Special Weapon . | . . . . . . . . . . . . . . . . . . . . . . . Impact Weapon 2 | . . . . . . . . . . . . . . 1 1 . . . . . . . Slashing Weapon 1 | . . . . . . . 1 . . . . . . . . . . . . . . . Piercing Weapon . | . . . . . . . . . . . . . . . . . . . . . . . Special Melee Weapon . | . . . . . . . . . . . . . . . . . . . . . . . Unidentified Prototypes 23 | . . 1 . . 3 1 1 . . 1 . . . . 7 . 1 . . 4 . 4 Corrupted Parts 5 | . . . . . . 1 . . . . . . . 1 1 . . . . . 1 1 System Corruption 24 | . . . . . . 4 . . . . . . . 5 3 . . . . . 2 10 Parts Lost 67 | . . 6 . . 1 3 2 . . . 1 . 5 . 21 1 . . . . 1 26 Power 8 | . . 2 . . . . . . . . . . 1 . 2 . . . . . . 3 Propulsion 19 | . . 1 . . . . . . . . . . . . 8 . . . . . 1 9 Utility 25 | . . . . . . 2 2 . . . 1 . 4 . 7 1 . . . . . 8 Weapon 15 | . . 3 . . 1 1 . . . . . . . . 4 . . . . . . 6 Highest Loss Streak 18 | . . 5 . . 1 1 2 . . . 1 . 3 . 15 1 . . . . 1 18 To Critical Strikes 2 | . . . . . . . . . . . . . . . . . . . . . . 2 Average Slot Usage (%) 89 | . 85 86 85 85 92 97 96 100 79 100 97 99 95 94 73 92 91 88 94 83 87 85 Engine 3 | . 14 13 14 14 8 7 7 7 7 7 5 . . . 1 . . . . . . . Core 2 | . . . . . . . . . . . 5 12 11 11 1 . . . . . . . Reactor 1 | . . . . . . . . . . . . . . . 2 6 5 5 5 5 5 4 Treads 15 | . 3 8 28 28 32 29 29 28 28 28 25 25 24 24 5 . . . . . . . Leg 10 | . 24 18 . . . . . . . . . . . . 13 25 24 22 27 23 26 27 Device 12 | . . . . . 10 19 17 21 21 20 17 12 12 12 10 11 20 11 11 11 11 16 Storage 10 | . 14 14 14 14 9 7 7 7 7 7 6 6 16 13 6 12 11 11 11 10 11 9 Processor 10 | . . 3 14 14 9 7 14 14 14 14 12 11 9 16 7 6 6 15 16 12 5 6 Protection 4 | . . . . . 5 7 1 . . . 6 12 . . 4 12 5 5 5 4 11 6 Energy Gun 4 | . 1 2 14 14 6 9 8 7 . 6 1 6 6 7 2 . . . . . . . Energy Cannon 10 | . 15 22 . . 7 4 5 14 1 14 16 12 5 5 8 18 16 16 16 13 16 13 Naked Turns . | . . . . . . . . . . . . . . . . . . . . . . . Heaviest Build 124 | 13 33 45 28 28 45 50 58 58 58 70 107 96 98 79 115 115 119 111 106 120 120 124 Greatest Support 165 | 20 40 40 40 40 80 82 80 80 80 80 120 118 118 118 118 116 136 123 123 138 143 165 Greatest Overweight (x) 3 | . 1 2 . . 1 . . . . . . . . . 3 . 1 1 . 1 1 1 Average Overweight (x) . | . . . . . . . . . . . . . . . . . . . . . . . Largest Inventory Capacity 20 | . 15 15 15 15 15 15 15 15 15 15 20 20 20 20 20 15 15 15 15 15 15 15 Average Capacity 15 | . 9 15 15 15 15 15 15 15 15 15 18 20 20 20 12 15 15 15 15 14 15 15 Most Carried 20 | . 9 13 10 10 15 15 15 15 15 15 20 20 20 20 20 15 15 15 15 15 15 15 Average Carried 14 | . 6 11 9 10 14 14 14 14 15 15 17 19 19 19 11 14 13 14 14 10 14 14 Final Capacity 20 | 8 15 15 15 15 15 15 15 15 15 15 20 20 20 20 15 15 15 15 15 15 15 15 Final Carried 20 | 6 9 8 10 10 15 15 15 15 15 15 20 20 20 20 15 14 15 15 15 15 15 7 Class Distribution -------------------- 25% | Mutant 22% | Scavenger-Mutant 18% | Scavenger-Gunner 8% | Scavenger-Tank 7% | Gunner 7% | Tank 5% | Scavenger-Golem 3% | Golem Dominant Class ---------------- Mutant | -10/Materials Mutant | -10/Mines Mutant | -10/Exiles Mutant | -9/Mines Scavenger-Mutant | -8/Materials Scavenger-Mutant | -7/Factory Mutant | -7/Lower Caves Gunner | -7/Lower Caves Mutant | -7/Data Miner Scavenger-Gunner | -6/Proximity Caves Tank | -6/Factory Tank | -6/Lower Caves Scavenger-Gunner | -6/Lower Caves Scavenger-Mutant | -6/Zion Scavenger-Mutant | -6/Deep Caves Scavenger-Tank | -5/Proximity Caves Scavenger-Gunner | -5/Factory Scavenger-Gunner | -5/Upper Caves Scavenger-Gunner | -5/Upper Caves Scavenger-Gunner | -5/Warlord Scavenger-Golem | -4/Proximity Caves Tank | -4/Factory Resources | -11 -10 -10 -10 -9 -8 -7 -7 -7 -7 -6 -6 -6 -6 -6 -6 -5 -5 -5 -5 -5 -4 -4 ----------- Run | Scr Mat Min Exi Min Mat Fac Low Low Dat Pro Fac Low Low Zio Dee Pro Fac Upp Upp War Pro Fac Matter Collected 3379 | 200 102 121 29 . 335 437 214 27 . 120 255 40 300 46 524 20 60 30 . 110 23 386 Remotely . | . . . . . . . . . . . . . . . . . . . . . . . Salvage Created 10838 | . 168 133 . 31 648 1026 315 141 . 376 325 303 715 . 861 267 381 793 65 505 665 3120 Parts 455 | . 11 6 . 3 32 51 16 4 . 18 14 18 23 . 14 14 22 23 8 18 16 144 Haulers Intercepted 5 | . . . . . 2 1 . . . . 1 . . . . . 1 . . . . . Recyclers Shooed 5 | . . 1 . . . 2 . . . . 1 . . . . . . . . . . 1 Parts Field Recycled . | . . . . . . . . . . . . . . . . . . . . . . . Retrieved Matter . | . . . . . . . . . . . . . . . . . . . . . . . Parts Self-Destructed 245 | . . . . . . . 10 4 . 29 . 18 28 2 . 13 . 21 . 104 16 . Prevented 9 | . . . . . . . 3 . . . . . . . . . . . . 6 . . Kills | -11 -10 -10 -10 -9 -8 -7 -7 -7 -7 -6 -6 -6 -6 -6 -6 -5 -5 -5 -5 -5 -4 -4 ------- Run | Scr Mat Min Exi Min Mat Fac Low Low Dat Pro Fac Low Low Zio Dee Pro Fac Upp Upp War Pro Fac Combat Hostiles Destroyed 214 | . 4 6 . 2 13 13 5 2 . 7 4 8 16 . 43 4 7 16 3 8 9 44 Guns 29 | . 4 1 . 2 6 3 3 1 . 1 . 2 6 . . . . . . . . . Cannons 115 | . . 2 . . 6 4 2 1 . 6 2 5 2 . 8 4 7 14 3 8 9 32 AOE 58 | . . 3 . . . 3 . . . . 2 . 8 . 32 . . 2 . . . 8 Classes Destroyed 28 | . 2 5 . . 2 5 2 1 . . 1 1 2 . 3 . . . . 2 . 2 Worker 6 | . . . . . . 1 . . . . . . . . . . 2 . . . . 3 Builder 4 | . . . . . . 1 . . . . 1 . . . . . . . . . . 2 Tunneler 3 | . . 1 . . . 1 . . . . . . . . . . 1 . . . . . Hauler 5 | . . . . . 2 1 . . . . 1 . . . . . 1 . . . . . Recycler 6 | . . 1 . . . 3 . . . . . . . . . . . . . . . 2 Minesweeper 1 | . . . . . . . . 1 . . . . . . . . . . . . . . Operator 3 | . 1 . . . . 1 . . . . 1 . . . . . . . . . . . Watcher 2 | . . . . . . . . . . . 1 . . . . . . . . . . 1 Swarmer 41 | . . 3 . 2 3 . 4 . . 2 . 6 3 . . . 5 6 . . . 7 Saboteur 1 | . . . . . . . . . . . . . . . . . . . . . . 1 Grunt 48 | . 4 . . . 6 6 . . . 4 . . 4 . . . . 6 . 3 4 11 Brawler 5 | . . . . . . . . . . . . . 3 . . . . 1 . 1 . . Duelist 5 | . . . . . . 1 . . . 1 . . 2 . . . . 1 . . . . Protector 1 | . . . . . . . . . . . . . 1 . . . . . . . . . Sentry 21 | . . . . . 4 2 . . . . 2 1 2 . . . 1 2 . . 1 6 Demolisher 2 | . . 2 . . . . . . . . . . . . . . . . . . . . Specialist 2 | . . . . . . . . . . . . . . . . . . . . . . 2 Hunter 20 | . . . . . . 1 . 2 . . 2 . . . . 2 . . . . 4 9 Programmer 15 | . . . . . . 3 . . . . . . . . . 2 1 . . 2 . 7 Behemoth 1 | . . . . . . . . . . . . 1 . . . . . . . . . . Enhanced Grunt 1 | . . . . . . . . . . . . . . . 1 . . . . . . . Striker 1 | . . . . . . . . . . . . . . . . . . . . 1 . . Executioner 2 | . . . . . . . . . . . . . . . . . . . . 1 . 1 Z-Light 1 | . . . . . . . . . . . . . . . 1 . . . . . . . Decomposer 1 | . . . . . . . 1 . . . . . . . . . . . . . . . Samaritan 1 | . . . . . . . 1 . . . . . . . . . . . . . . . Thief 1 | . . . . . . . 1 . . . . . . . . . . . . . . . Master Thief 4 | . . . . . . . . . . . . . 1 . . . . . 3 . . . Assembler 1 | . . . . . . . . . . . . . . . 1 . . . . . . . Assembled 37 | . . 1 . . . . . . . . . . . . 36 . . . . . . . Golem 5 | . . . . . . . . . . . . . . . 5 . . . . . . . Thug 1 | . . 1 . . . . . . . . . . . . . . . . . . . . Best Kill Streak 33 | . 3 4 . 2 3 4 4 1 . 3 4 3 12 . 33 2 6 7 3 3 3 17 Combat Bots Only 32 | . 3 3 . 2 3 4 4 1 . 3 2 3 12 . 32 2 5 7 3 3 3 9 Max Kills in Single Turn 10 | . 1 2 . 1 1 2 2 1 . 1 1 1 3 . 10 1 2 2 1 2 1 2 Gunslinging . | . . . . . . . . . . . . . . . . . . . . . . . Exploded 10 | . . 2 . . . 1 . . . . 1 . 3 . 10 . . 2 . . . 2 Melee . | . . . . . . . . . . . . . . . . . . . . . . . Uniques/NPCs Destroyed 1 | . . . . . . . . . . . . . . . 1 . . . . . . . Z-Imprinter (-6/Deep Caves) Combat | -11 -10 -10 -10 -9 -8 -7 -7 -7 -7 -6 -6 -6 -6 -6 -6 -5 -5 -5 -5 -5 -4 -4 -------- Run | Scr Mat Min Exi Min Mat Fac Low Low Dat Pro Fac Low Low Zio Dee Pro Fac Upp Upp War Pro Fac Damage Taken 17167 | . 123 873 17 59 603 1300 296 102 . 419 474 390 1252 . 2867 325 264 492 30 827 774 5680 Core 2094 | . 22 113 17 32 67 75 . . . . 25 22 163 . 585 . 19 89 5 140 52 668 Absorbed by Shields 419 | . . . . . 76 . . . . . . . . . . . . . . 80 . 263 Redirected to Shielding 118 | . . . . . . 4 . . . . . . 88 . 26 . . . . . . . Regen/Repaired (Parts) 119 | . . . . . 119 . . . . . . . . . . . . . . . . . Core Remaining (%) 62 | 100 . . . 26 87 . . . . 89 . . . . . 6 . . . . 69 . Volleys Fired 515 | . 14 20 5 7 42 48 8 7 . 15 19 14 34 . 92 13 15 19 6 18 22 97 Largest 3 | . 2 2 1 1 2 2 3 3 . 3 3 3 3 . 3 3 3 3 3 3 3 3 Hottest 250 | . 136 143 75 75 143 140 215 215 . 229 250 235 235 . 140 140 140 140 140 75 75 250 Shots Fired 1065 | . 28 35 5 7 80 89 21 22 . 44 41 40 74 . 109 39 40 57 18 53 54 209 Gun 233 | . 24 4 5 7 47 41 11 8 . 15 3 13 49 . 6 . . . . . . . Cannon 781 | . 4 28 . . 33 41 10 14 . 29 33 27 20 . 88 39 40 57 18 53 54 193 Launcher 51 | . . 3 . . . 7 . . . . 5 . 5 . 15 . . . . . . 16 Special . | . . . . . . . . . . . . . . . . . . . . . . . Kinetic 79 | . 24 . . . 39 . . . . . . . 16 . . . . . . . . . Thermal 869 | . 4 32 5 7 41 64 15 22 . 44 36 40 47 . 58 39 40 57 18 53 54 193 Explosive 25 | . . 3 . . . . . . . . 5 . 5 . 12 . . . . . . . Electromagnetic 92 | . . . . . . 25 6 . . . . . 6 . 39 . . . . . . 16 Robot Hit Streak 55 | . 7 8 . 3 22 15 6 7 . 18 9 7 10 . 12 5 7 7 5 11 45 55 Robot Miss Streak 7 | . 2 3 . 2 5 4 2 2 . 5 2 5 4 . 7 6 2 2 1 1 2 3 Penetration Max . | . . . . . . . . . . . . . . . . . . . . . . . Secondary Targets 1 | . . . . . 1 . . . . . . . . . . . . . . . . . Max Gunslinging Chain 1 | . . . . . 1 . . . . . . . . . . . . . . . . . Shots Hit Robots 705 | . 20 16 . 4 68 66 14 12 . 28 29 15 49 . 59 21 20 36 10 38 46 154 Core Hits 444 | . 9 12 . 2 31 36 11 5 . 13 12 7 39 . 103 5 8 20 3 16 18 94 Critical Kills 1 | . . . . . . . . . . . . 1 . . . . . . . . . . Critical Parts Destroyed . | . . . . . . . . . . . . . . . . . . . . . . . Critical Strikes 5 | . . . . . 1 . 1 . . . . 2 1 . . . . . . . . . Burn 3 | . . . . . 1 . . . . . . 1 1 . . . . . . . . . Meltdown 1 | . . . . . . . . . . . . 1 . . . . . . . . . . Sever 1 | . . . . . . . 1 . . . . . . . . . . . . . . . Melee Attacks 30 | . . . . . . . 20 . . . . . . 9 1 . . . . . . . Impact 10 | . . . . . . . . . . . . . . 9 1 . . . . . . . Slashing 20 | . . . . . . . 20 . . . . . . . . . . . . . . . Piercing . | . . . . . . . . . . . . . . . . . . . . . . . Sneak Attacks 2 | . . . . . . . 2 . . . . . . . . . . . . . . . Combat Hostiles . | . . . . . . . . . . . . . . . . . . . . . . . Follow-up Attacks . | . . . . . . . . . . . . . . . . . . . . . . . Damage Inflicted 32673 | . 276 561 . 84 1254 2250 402 272 . 707 1357 469 2323 . 4858 988 1095 1920 403 1807 2152 9495 Guns 2892 | . 196 21 . 84 599 620 115 90 . 172 79 79 817 . 20 . . . . . . . Cannons 21121 | . 80 306 . . 655 819 149 182 . 535 664 390 424 . 1788 988 1095 1738 403 1795 2152 6958 Explosions 8510 | . . 234 . . . 811 . . . . 614 . 1082 . 3050 . . 182 . . . 2537 Melee 138 | . . . . . . . 138 . . . . . . . . . . . . . . . Ramming 12 | . . . . . . . . . . . . . . . . . . . . 12 . . Kinetic 958 | . 196 . . . 555 . . . . . . . 207 . . . . . . . . . Thermal 22931 | . 80 327 . 84 699 1209 220 272 . 707 743 469 1061 . 1437 988 1095 1920 403 1795 2152 7270 Explosive 5427 | . . 234 . . . 298 . . . . 614 . 981 . 2817 . . . . . . 483 Electromagnetic 3207 | . . . . . . 743 44 . . . . . 74 . 604 . . . . . . 1742 Impact . | . . . . . . . . . . . . . . . . . . . . . . . Slashing 138 | . . . . . . . 138 . . . . . . . . . . . . . . . Piercing . | . . . . . . . . . . . . . . . . . . . . . . . Highest Corruption 22 | . . . . . . 10 10 10 10 10 . . 2 5 3 4 . . . 4 6 22 Average Corruption 5 | . . . . . . 4 9 10 10 10 . . 2 2 3 3 . . . 3 5 6 Corruption Purged 5 | . . . . . . 5 . . . . . . . . . . . . . . . . Corruption Blocked . | . . . . . . . . . . . . . . . . . . . . . . . Effects 202 | . . . . . . 28 38 22 5 19 . . 15 . 17 6 . . . 3 34 15 Message Errors 50 | . . . . . . 5 10 7 2 4 . . 5 . 6 1 . . . 1 6 3 Matter Fused 61 | . . . . . . 11 17 2 1 5 . . 2 . 5 1 . . . 1 11 5 Heat Flow Errors 21 | . . . . . . 2 5 3 2 . . . 2 . 3 . . . . 1 2 1 Energy Discharges 23 | . . . . . . 5 4 3 . 2 . . . . . 1 . . . . 5 3 Parts Rejected 3 | . . . . . . 1 . . . . . . 1 . . . . . . . . 1 Data Loss (minor) 21 | . . . . . . 2 1 1 . 4 . . 2 . 2 2 . . . . 6 1 Data Loss (major) 11 | . . . . . . 2 1 1 . 2 . . 2 . . 1 . . . . 2 . Misfires 5 | . . . . . . . . 3 . . . . 1 . . . . . . . 1 . Alerts 1 | . . . . . . . . . . 1 . . . . . . . . . . . . Misdirections 1 | . . . . . . . . . . . . . . . . . . . . . . 1 Weapon Failures 5 | . . . . . . . . 2 . 1 . . . . 1 . . . . . 1 . Overload Shots . | . . . . . . . . . . . . . . . . . . . . . . . Overflow Damage 1466 | . . 37 . . . 94 8 24 . . 72 . 7 . 166 115 141 93 38 121 27 523 Projectiles 1201 | . . 1 . . . 66 8 24 . . . . 7 . 76 115 141 93 38 121 27 484 Explosions 265 | . . 36 . . . 28 . . . . 72 . . . 90 . . . . . . 39 Melee . | . . . . . . . . . . . . . . . . . . . . . . . Knockbacks 6 | . . . . . 6 . . . . . . . . . . . . . . . . . Impact . | . . . . . . . . . . . . . . . . . . . . . . . Kinetic 5 | . . . . . 5 . . . . . . . . . . . . . . . . . Secondary 1 | . . . . . 1 . . . . . . . . . . . . . . . . . Self-Inflicted Damage 1185 | . . 59 . . . 24 . . . . 3 . 255 . 32 . . 36 . . . 776 Shots 38 | . . 3 . . . 2 . . . . 1 . 6 . 1 . . 1 . . . 24 Rammed . | . . . . . . . . . . . . . . . . . . . . . . . Targets Rammed 1 | . . . . . . . . . . . . . . . . . . . . 1 . . Kicked 1 | . . . . . . . . . . . . . . . . . . . . 1 . . Crushed . | . . . . . . . . . . . . . . . . . . . . . . . Highest Temperature 441 | . 75 353 136 238 261 148 191 213 197 3 441 60 218 . 238 . 64 24 . 168 187 326 Average Temperature 85 | . 38 106 61 122 84 39 88 105 106 3 138 26 82 . 79 . 29 15 . 91 76 132 Received Heat Transfer 2324 | . 66 40 . . 234 255 . . . 63 66 . 222 . 668 . 27 108 . 62 100 413 Effects 1 | . . 1 . . . . . . . . . . . . . . . . . . . . Shutdowns 1 | . . 1 . . . . . . . . . . . . . . . . . . . . Siege Activations . | . . . . . . . . . . . . . . . . . . . . . . . Robots Corrupted 9 | . . . . . . 2 . . . . . . . . 3 . . . . . . 4 Combat Hostiles 8 | . . . . . . 2 . . . . . . . . 3 . . . . . . 3 Parts Fried 18 | . . . . . . 6 . . . . . . 1 . . . . . . . . 11 Impact Corruptions . | . . . . . . . . . . . . . . . . . . . . . . . Robots Melted 4 | . . . . . 1 1 . . . . . 1 . . . . . . . . . 1 Combat Hostiles 4 | . . . . . 1 1 . . . . . 1 . . . . . . . . . 1 Parts Melted 35 | . . . . 2 3 4 . 1 . 5 3 5 2 . . . 1 . . . . 9 Heat Transferred 18418 | . 148 592 . 148 1295 2101 448 535 . 1383 961 435 1026 . 805 375 400 875 175 856 1150 4710 Parts Sabotaged . | . . . . . . . . . . . . . . . . . . . . . . . Parts Stolen 8 | . . . . . . . 1 . . . . . 4 . . . . . 3 . . . Parts Stripped . | . . . . . . . . . . . . . . . . . . . . . . . Power Chain Reactions 9 | . . . . . . 2 . . . . . . 1 . 2 . . 2 . . . 2 Missiles Intercepted . | . . . . . . . . . . . . . . . . . . . . . . . Alert | -11 -10 -10 -10 -9 -8 -7 -7 -7 -7 -6 -6 -6 -6 -6 -6 -5 -5 -5 -5 -5 -4 -4 ------- Run | Scr Mat Min Exi Min Mat Fac Low Low Dat Pro Fac Low Low Zio Dee Pro Fac Upp Upp War Pro Fac Peak Influence 1026 | . 134 110 . 65 234 335 . . . . 280 . . . . . 173 . . . . 1026 Initial 65 | . . 52 . . 25 27 . . . . 54 . . . . . 65 . . . . . Average 165 | . 91 51 . 26 98 173 . . . . 93 . . . . . 69 . . . . 472 Maximum Alert Level 3 | . . . . . 1 1 . . . . 1 . . . . . . . . . . 3 Low Security (%) 75 | . 100 100 . 100 95 44 . . . . 85 . . . . . 100 . . . . 40 Level 1 15 | . . . . . 4 55 . . . . 14 . . . . . . . . . . 8 Level 2 1 | . . . . . . . . . . . . . . . . . . . . . . 8 Level 3 7 | . . . . . . . . . . . . . . . . . . . . . . 42 Level 4 . | . . . . . . . . . . . . . . . . . . . . . . . Level 5 . | . . . . . . . . . . . . . . . . . . . . . . . High Security . | . . . . . . . . . . . . . . . . . . . . . . . Max Security . | . . . . . . . . . . . . . . . . . . . . . . . Squads Dispatched 20 | . 2 . . . 1 2 . . . . 1 . 1 . . . 1 . . . . 12 Investigation 2 | . . . . . 1 . . . . . . . . . . . 1 . . . . . Extermination 4 | . . . . . . 1 . . . . 1 . . . . . . . . . . 2 Reinforcement 9 | . 2 . . . . 1 . . . . . . . . . . . . . . . 6 Assault 1 | . . . . . . . . . . . . . 1 . . . . . . . . . Garrison 4 | . . . . . . . . . . . . . . . . . . . . . . 4 Intercept . | . . . . . . . . . . . . . . . . . . . . . . . Searches Triggered . | . . . . . . . . . . . . . . . . . . . . . . . Construction Impeded 2 | . . . . . . . . . . . . . . . . . . . . . . 2 Haulers Reinforced 2 | . . . . . . . . . . . . . . . . . . . . . . 2 Active Scanning Responses . | . . . . . . . . . . . . . . . . . . . . . . . Cargo Convoy Interrupts 1 | . . . . . . . . . . . . . . . . . . . . . . 1 Stealth | -11 -10 -10 -10 -9 -8 -7 -7 -7 -7 -6 -6 -6 -6 -6 -6 -5 -5 -5 -5 -5 -4 -4 --------- Run | Scr Mat Min Exi Min Mat Fac Low Low Dat Pro Fac Low Low Zio Dee Pro Fac Upp Upp War Pro Fac Distress Signals 9 | . . . . . 2 . . . . . . . . . . . . . . 2 . 5 Communications Jammed 1 | . . . . . . . . . . . . . . . . . 1 . . . . . Distress Signals 1 | . . . . . . . . . . . . . . . . . 1 . . . . . Times Spotted 358 | . 9 8 6 3 18 21 5 2 . 11 6 9 21 . 58 4 10 20 4 65 9 69 Peak Tracking Total 37 | . 5 3 9 3 4 4 4 1 . 3 2 4 11 . 37 2 5 5 4 13 3 13 Tactical Retreats 6 | . . . . 1 . 1 . . . . . 1 1 . . . . 2 . . . . Traps | -11 -10 -10 -10 -9 -8 -7 -7 -7 -7 -6 -6 -6 -6 -6 -6 -5 -5 -5 -5 -5 -4 -4 ------- Run | Scr Mat Min Exi Min Mat Fac Low Low Dat Pro Fac Low Low Zio Dee Pro Fac Upp Upp War Pro Fac Traps Triggered 6 | . . . . . 1 2 . . . . 1 . . . . . . . . . . 2 Indirectly 1 | . . . . . . 1 . . . . . . . . . . . . . . . . Trap Hack Attempts . | . . . . . . . . . . . . . . . . . . . . . . . Triggered . | . . . . . . . . . . . . . . . . . . . . . . . Disarmed . | . . . . . . . . . . . . . . . . . . . . . . . Reprogrammed . | . . . . . . . . . . . . . . . . . . . . . . . Reused . | . . . . . . . . . . . . . . . . . . . . . . . Traps Extracted . | . . . . . . . . . . . . . . . . . . . . . . . Installed . | . . . . . . . . . . . . . . . . . . . . . . . Triggered 12 | . . . . . . . 3 . . . . . . . . 1 . . . 8 . . Most Traps Carried 2 | . . . . . . . 2 2 . . . . . . . . . . . . . . Machines | -11 -10 -10 -10 -9 -8 -7 -7 -7 -7 -6 -6 -6 -6 -6 -6 -5 -5 -5 -5 -5 -4 -4 ---------- Run | Scr Mat Min Exi Min Mat Fac Low Low Dat Pro Fac Low Low Zio Dee Pro Fac Upp Upp War Pro Fac Machines Disabled 31 | . . . 2 . 1 5 . . . . 5 . 1 . 3 . 1 1 . . . 12 Max in Single Turn 5 | . . . 1 . 1 1 . . . . 2 . 1 . 1 . 1 1 . . . 5 Machines Sabotaged . | . . . . . . . . . . . . . . . . . . . . . . . Garrisons Compromised . | . . . . . . . . . . . . . . . . . . . . . . . Overloaded Fab Kills . | . . . . . . . . . . . . . . . . . . . . . . . Hacking | -11 -10 -10 -10 -9 -8 -7 -7 -7 -7 -6 -6 -6 -6 -6 -6 -5 -5 -5 -5 -5 -4 -4 --------- Run | Scr Mat Min Exi Min Mat Fac Low Low Dat Pro Fac Low Low Zio Dee Pro Fac Upp Upp War Pro Fac Machines Accessed 45 | . 2 2 2 . 6 5 1 . 4 . 8 . . . . 1 9 1 . 1 . 3 Terminals 28 | . 2 1 . . 5 3 . . . . 7 . . . . 1 7 . . . . 2 Fabricators 3 | . . . . . . 1 . . . . 1 . . . . . . . . . . 1 Repair Stations 2 | . . . . . 1 . . . . . . . . . . . 1 . . . . . Recycling Units 1 | . . . . . . . . . . . . . . . . . 1 . . . . . Scanalyzers 1 | . . . . . . 1 . . . . . . . . . . . . . . . . Garrison Access . | . . . . . . . . . . . . . . . . . . . . . . . Total Hacks 134 | . 5 5 3 . 23 14 1 . 30 . 16 . . . . 1 26 1 . 1 . 8 Successful 77 | . 3 2 3 . 12 7 1 . 30 . 4 . . . . 1 10 1 . 1 . 2 Failed 56 | . 1 3 . . 11 7 . . . . 12 . . . . . 16 . . . . 6 Catastrophic 12 | . . 1 . . 2 2 . . . . 5 . . . . . 1 . . . . 1 Database Lockouts 1 | . 1 . . . . . . . . . . . . . . . . . . . . . Manual 53 | . 5 4 1 . 14 6 . . . . 9 . . 1 . . 11 . . 1 . 1 Terminals 73 | . 5 4 . . 17 8 . . . . 15 . . . . 1 17 . . . . 6 Fabricators 4 | . . . . . . 1 . . . . 1 . . . . . . . . . . 2 Repair Stations 13 | . . . . . 6 . . . . . . . . . . . 7 . . . . . Recycling Units 2 | . . . . . . . . . . . . . . . . . 2 . . . . . Scanalyzers 5 | . . . . . . 5 . . . . . . . . . . . . . . . . Garrison Access . | . . . . . . . . . . . . . . . . . . . . . . . Terminal Hacks 55 | . 2 2 3 . 5 2 1 . 30 . 3 . . . . 1 3 1 . 1 . 1 Record 14 | . . . 2 . . . . . 11 . . . . . . 1 . . . . . . Part Schematic 11 | . 1 . . . . . . . 10 . . . . . . . . . . . . . Robot Schematic 6 | . . . . . . . . . 6 . . . . . . . . . . . . . Robot Analysis 1 | . . . . . 1 . . . . . . . . . . . . . . . . . Prototype ID Bank 3 | . . . . . . . . . 3 . . . . . . . . . . . . . Open Door 4 | . . 1 . . . . 1 . . . . . . . . . . 1 . 1 . . Branch Access Points 5 | . 1 . . . 1 1 . . . . 1 . . . . . 1 . . . . . Alert Level 1 | . . . . . . . . . . . 1 . . . . . . . . . . . Unreport Threat 3 | . . . . . 1 . . . . . 1 . . . . . 1 . . . . . Locate Traps 1 | . . . . . . . . . . . . . . . . . . . . . . 1 Security Status 1 | . . . . . . . . . . . . . . . . . 1 . . . . . Transport Status 1 | . . . . . 1 . . . . . . . . . . . . . . . . . Hauler Manifests 1 | . . . . . 1 . . . . . . . . . . . . . . . . . Zone Layout 2 | . . 1 . . . 1 . . . . . . . . . . . . . . . . EX-Prototype ID Bank 1 | . . . 1 . . . . . . . . . . . . . . . . . . . Fabricator Hacks . | . . . . . . . . . . . . . . . . . . . . . . . Repair Station Hacks 6 | . . . . . 4 . . . . . . . . . . . 2 . . . . . Scan Component 4 | . . . . . 2 . . . . . . . . . . . 2 . . . . . Repair 2 | . . . . . 2 . . . . . . . . . . . . . . . . . Recycling Unit Hacks 2 | . . . . . . . . . . . . . . . . . 2 . . . . . Report Inventory 1 | . . . . . . . . . . . . . . . . . 1 . . . . . Retrieve Components 1 | . . . . . . . . . . . . . . . . . 1 . . . . . Scanalyzer 4 | . . . . . . 4 . . . . . . . . . . . . . . . . Insert Component 2 | . . . . . . 2 . . . . . . . . . . . . . . . . Analyze 2 | . . . . . . 2 . . . . . . . . . . . . . . . . Garrison Access Hacks . | . . . . . . . . . . . . . . . . . . . . . . . Unauthorized Hacks 10 | . 1 . . . 3 1 . . . . 1 . . . . . 3 . . . . 1 Terminals 9 | . 1 . . . 2 1 . . . . 1 . . . . . 3 . . . . 1 Track 1 | . . . . . 1 . . . . . . . . . . . . . . . . . Botnet 8 | . 1 . . . 1 1 . . . . 1 . . . . . 3 . . . . 1 Fabricators . | . . . . . . . . . . . . . . . . . . . . . . . Repair Stations 1 | . . . . . 1 . . . . . . . . . . . . . . . . . Mechanics 1 | . . . . . 1 . . . . . . . . . . . . . . . . . Recycling Units . | . . . . . . . . . . . . . . . . . . . . . . . Scanalyzers . | . . . . . . . . . . . . . . . . . . . . . . . Garrison Access . | . . . . . . . . . . . . . . . . . . . . . . . Data Cores Recovered 1 | . . . . . . 1 . . . . . . . . . . . . . . . . Used . | . . . . . . . . . . . . . . . . . . . . . . . Hacking Detections 31 | . 1 1 . . 6 5 . . . . 7 . . . . . 8 . . . . 3 Full Trace Events 2 | . . . . . 1 . . . . . . . . . . . 1 . . . . . Feedback Events . | . . . . . . . . . . . . . . . . . . . . . . . Feedback Blocked . | . . . . . . . . . . . . . . . . . . . . . . . Robot Schematics Acquired 6 | . . . . . . . . . 6 . . . . . . . . . . . . . Robots Built . | . . . . . . . . . . . . . . . . . . . . . . . Authchips . | . . . . . . . . . . . . . . . . . . . . . . . Time . | . . . . . . . . . . . . . . . . . . . . . . . Total Robot Build Rating . | . . . . . . . . . . . . . . . . . . . . . . . Part Schematics Acquired 12 | . 1 . . . . 1 . . 10 . . . . . . . . . . . . . Parts Built . | . . . . . . . . . . . . . . . . . . . . . . . Authchips . | . . . . . . . . . . . . . . . . . . . . . . . Time . | . . . . . . . . . . . . . . . . . . . . . . . Total Part Build Rating . | . . . . . . . . . . . . . . . . . . . . . . . Parts Repaired 2 | . . . . . 2 . . . . . . . . . . . . . . . . . Time 77 | . . . . . 77 . . . . . . . . . . . . . . . . . Parts Recycled . | . . . . . . . . . . . . . . . . . . . . . . . Recycled Matter . | . . . . . . . . . . . . . . . . . . . . . . . Retrieved Matter . | . . . . . . . . . . . . . . . . . . . . . . . Retrieved Components 2 | . . . . . . . . . . . . . . . . . 2 . . . . . Parts Scanalyzed 2 | . . . . . . 2 . . . . . . . . . . . . . . . . Part Schematics Acquired 1 | . . . . . . 1 . . . . . . . . . . . . . . . . Parts Damaged . | . . . . . . . . . . . . . . . . . . . . . . . Bothacking | -11 -10 -10 -10 -9 -8 -7 -7 -7 -7 -6 -6 -6 -6 -6 -6 -5 -5 -5 -5 -5 -4 -4 ------------ Run | Scr Mat Min Exi Min Mat Fac Low Low Dat Pro Fac Low Low Zio Dee Pro Fac Upp Upp War Pro Fac Used RIF Installer . | . . . . . . . . . . . . . . . . . . . . . . . Robots Hacked . | . . . . . . . . . . . . . . . . . . . . . . . Non-combat . | . . . . . . . . . . . . . . . . . . . . . . . Combat . | . . . . . . . . . . . . . . . . . . . . . . . Robot Hacks Applied . | . . . . . . . . . . . . . . . . . . . . . . . Relay Couplers Released . | . . . . . . . . . . . . . . . . . . . . . . . Fabnet Peak Effective % . | . . . . . . . . . . . . . . . . . . . . . . . Robots Rewired 5 | . . . . . . . . . . . . . 2 . . . . 1 . 2 . . Allies Hacked . | . . . . . . . . . . . . . . . . . . . . . . . Hacks Repelled . | . . . . . . . . . . . . . . . . . . . . . . . Allies | -11 -10 -10 -10 -9 -8 -7 -7 -7 -7 -6 -6 -6 -6 -6 -6 -5 -5 -5 -5 -5 -4 -4 -------- Run | Scr Mat Min Exi Min Mat Fac Low Low Dat Pro Fac Low Low Zio Dee Pro Fac Upp Upp War Pro Fac Total Allies 8 | . . . . . . . . . . 1 . . 2 2 . . . 1 . 2 . . Largest Group 2 | . . . . . . . . . . 1 . . 2 2 2 . . 1 . 2 . . Highest-Rated Group 192 | . . . . . . . . . . 96 . . 58 192 192 . . 29 . 106 . . Highest-Rated Ally 96 | . . . . . . . . . . 96 . . 29 96 96 . . 29 . 65 . . Total Orders 4 | . . 2 . . . . . . . 2 . . . . . . . . . . . . RETURN 4 | . . 2 . . . . . . . 2 . . . . . . . . . . . . Ally Attacks 131 | . . . . . . . . . . 17 . . 9 . 89 . . 13 . 3 . . Total Damage 3595 | . . . . . . . . . . 533 . . 76 . 2644 . . 173 . 169 . . Kills 28 | . . . . . . . . . . 4 . . 2 . 20 . . 2 . . . . Allies Corrupted . | . . . . . . . . . . . . . . . . . . . . . . . Allies Melted . | . . . . . . . . . . . . . . . . . . . . . . . Intel | -11 -10 -10 -10 -9 -8 -7 -7 -7 -7 -6 -6 -6 -6 -6 -6 -5 -5 -5 -5 -5 -4 -4 ------- Run | Scr Mat Min Exi Min Mat Fac Low Low Dat Pro Fac Low Low Zio Dee Pro Fac Upp Upp War Pro Fac Robot Analysis Total 1 | . . . . . 1 . . . . . . . . . . . . . . . . . Derelict Logs Recovered 8 | . . . . . . . 1 . . 2 . . 1 2 . . . 1 . . 1 . Drone Launches 13 | . . 6 . . . . . . . 7 . . . . . . . . . . . . Drone Recoveries 13 | . . 6 . . . . . . . 7 . . . . . . . . . . . . Exploration | -11 -10 -10 -10 -9 -8 -7 -7 -7 -7 -6 -6 -6 -6 -6 -6 -5 -5 -5 -5 -5 -4 -4 ------------- Run | Scr Mat Min Exi Min Mat Fac Low Low Dat Pro Fac Low Low Zio Dee Pro Fac Upp Upp War Pro Fac Turns Passed 19753 | . 338 1005 739 153 920 1367 1166 546 168 524 887 538 1049 2063 2171 333 755 566 308 1759 1256 1142 Spaces Moved 9724 | 1 218 502 456 87 379 690 658 307 101 278 484 287 560 1266 694 181 459 322 214 822 258 500 Core . | . . . . . . . . . . . . . . . . . . . . . . . Treads 6018 | . 27 176 456 87 379 690 658 307 101 278 484 287 560 1266 262 . . . . . . . Legs 3508 | 1 191 326 . . . . . . . . . . . . 284 181 459 322 214 822 258 450 Wheels . | . . . . . . . . . . . . . . . . . . . . . . . Hover 198 | . . . . . . . . . . . . . . . 148 . . . . . . 50 Flight . | . . . . . . . . . . . . . . . . . . . . . . . Fastest Speed 56 | 120 120 160 160 160 160 161 160 162 162 162 160 160 160 160 120 135 132 132 132 128 128 56 Average Speed 153 | 120 125 180 160 160 162 162 161 162 162 162 160 160 160 160 151 135 152 143 132 131 129 120 Slowest Speed 281 | 120 190 260 160 160 240 165 162 162 162 162 162 160 160 160 281 135 185 185 132 185 180 180 Overloaded Moves . | . . . . . . . . . . . . . . . . . . . . . . . Propulsion Burnouts . | . . . . . . . . . . . . . . . . . . . . . . . Robots Hopped . | . . . . . . . . . . . . . . . . . . . . . . . Cave-ins Triggered 1 | . . . . . . . 1 . . . . . . . . . . . . . . . Exploration Rate (%) 46 | 2 40 67 77 33 40 19 60 46 70 50 12 48 56 85 75 39 17 49 31 84 46 19 Regions Visited 22 Branch Regions 16 Pre-discovered Areas 6 | . . . 1 . . . 1 . 1 1 . . . 1 . . . 1 . . . . Known Exits Taken 9 | . 1 . . . . 1 1 1 1 1 1 . . 1 . . 1 . . . . . Unknown Exits Taken 13 | 1 . 1 1 1 1 . . . . . . 1 1 . 1 1 . 1 1 1 1 . Scrap Searched 24 | . . . . . . . 3 6 . 1 . 3 2 2 . 1 . 2 3 . 1 . Spaces Dug 30 | . . . . . . . 18 . . . 2 . . 3 . . 2 . 2 . . 3 Terrain Destroyed 413 | . . 29 . . . 29 18 . . . 77 5 46 3 9 17 14 28 5 5 8 120 Melee 21 | . . . . . . . 18 . . . . . . 3 . . . . . . . . Projectile 130 | . . . . . . . . . . . 6 5 10 . 9 17 14 17 5 5 8 34 AOE 262 | . . 29 . . . 29 . . . . 71 . 36 . . . . 11 . . . 86 Terrain Rammed . | . . . . . . . . . . . . . . . . . . . . . . . Walls Destroyed . | . . . . . . . . . . . . . . . . . . . . . . . Machines Disabled . | . . . . . . . . . . . . . . . . . . . . . . . Actions | -11 -10 -10 -10 -9 -8 -7 -7 -7 -7 -6 -6 -6 -6 -6 -6 -5 -5 -5 -5 -5 -4 -4 --------- Run | Scr Mat Min Exi Min Mat Fac Low Low Dat Pro Fac Low Low Zio Dee Pro Fac Upp Upp War Pro Fac Total 13649 | . 256 563 461 94 612 843 710 342 106 319 559 333 648 1293 1704 241 489 378 225 1470 1140 863 Wait 2794 | . 4 24 . 1 139 41 1 23 . 16 12 25 6 3 837 42 1 20 1 545 851 202 Move 9703 | . 217 501 455 86 378 689 657 306 100 277 483 286 559 1265 693 180 458 321 213 822 257 500 Hop . | . . . . . . . . . . . . . . . . . . . . . . . Pick Up 118 | . 7 4 1 . 14 13 7 2 . 2 10 1 6 4 10 2 3 1 4 19 1 7 Fast Attach 127 | . 4 3 . . 16 16 4 . 3 4 9 2 7 4 19 . 4 1 . 10 1 20 Attach 39 | . . 5 . . 1 2 3 . . . 2 . 5 2 9 1 2 . . 1 . 6 Detach 10 | . . . . . 2 . . . . . . . 2 . 4 . 1 . . . . 1 Swap 60 | . 2 4 . . 2 13 4 1 . . 8 2 6 3 8 . . 2 . . . 5 Drop 199 | . 8 2 . . 18 21 6 3 3 5 16 3 7 3 27 2 5 1 1 35 8 25 Fire 515 | . 14 20 5 7 42 48 8 7 . 15 19 14 34 . 92 13 15 19 6 18 22 97 Melee 30 | . . . . . . . 20 . . . . . . 9 1 . . . . . . . Ram . | . . . . . . . . . . . . . . . . . . . . . . . Kick . | . . . . . . . . . . . . . . . . . . . . . . . Crush . | . . . . . . . . . . . . . . . . . . . . . . . Escape Stasis . | . . . . . . . . . . . . . . . . . . . . . . . Rewire 54 | . . . . . . . . . . . . . 16 . 4 1 . 13 . 20 . . Trap . | . . . . . . . . . . . . . . . . . . . . . . . Miscellaneous . | . . . . . . . . . . . . . . . . . . . . . . . Route ------- -11/Scrapyard -10/Materials (discovered 3 exits: [*Mat] / *Min x2) -10/Mines -10/Exiles (discovered 2 exits: [*Min x2]) -9/Mines -8/Materials -7/Factory (discovered 3 exits: Sto / *Low x2) -7/Lower Caves -7/Lower Caves (discovered 2 exits: *Fac / *Dat) -7/Data Miner -6/Proximity Caves -6/Factory (discovered 4 exits: *Low x2 / Ext x2) -6/Lower Caves -6/Lower Caves (discovered 2 exits: *Fac / *Zio) -6/Zion (discovered 2 exits: *Dee / [*Pro]) -6/Deep Caves -5/Proximity Caves -5/Factory (discovered 2 exits: *Upp x2) -5/Upper Caves -5/Upper Caves -5/Warlord -4/Proximity Caves -4/Factory (discovered 1 exit: [*Res]) History --------- Turn | Location | Event 1 | -11/Scrapyard | Discovered new exit (range 0) 1 | -11/Scrapyard | Entered Materials 47 | -10/Materials | Central database locked down 47 | -10/Materials | Identified exit to Mines 133 | -10/Materials | Discovered new exit (range 4) 316 | -10/Materials | Build established: Mutant 339 | -10/Materials | Entered Mines 363 | -10/Mines | Assembled infested the area 378 | -10/Mines | Met a Derelict bent on vengeance 402 | -10/Mines | Met 8R-AWN 533 | -10/Mines | Discovered new exit (range 5) 1006 | -10/Mines | Found the Drone Emporium 1018 | -10/Mines | Found Prototype Device 1018 | -10/Mines | Identified Splice Drone Bay 1162 | -10/Mines | Core integrity fell below 50% 1188 | -10/Mines | Lost 5 parts (1p1n3w) 1344 | -10/Mines | Entered Exiles 1365 | -10/Exiles | Discovered new exit (range 15) 1384 | -10/Exiles | Welcomed by 8R-AWN 1412 | -10/Exiles | Met EX-HEX 1464 | -10/Exiles | Met EX-BIN 1487 | -10/Exiles | Aligned with FarCom system 1488 | -10/Exiles | Given EX-Vault access code 1527 | -10/Exiles | Opened EX-Vault 1536 | -10/Exiles | Found Firepult 1568 | -10/Exiles | Warned to stay clear of 0b10 Research branches 1613 | -10/Exiles | Met EX-DEC 1670 | -10/Exiles | Visited The Gauntlet 1899 | -10/Exiles | Learned location of Zion (-6) 1947 | -10/Exiles | Discovered new exit (range 10) 2041 | -10/Exiles | Attacked by the Exiles 2083 | -10/Exiles | Left Exiles lab with Firepult 2083 | -10/Exiles | Entered Mines 2225 | -9/Mines | Discovered new exit (range 8) 2236 | -9/Mines | Entered Materials 2236 | -8/Materials | Evolved 4 slots: Propulsion x2, Utility x2 2683 | -8/Materials | Repaired Hvy. Ion Engine 2711 | -8/Materials | Repaired Lgt. Treads 2877 | -8/Materials | Discovered new exit (range 4) 3014 | -8/Materials | Build established: Scavenger-Mutant 3156 | -8/Materials | Entered Factory 3156 | -7/Factory | Evolved 2 slots: Utility x2 3968 | -7/Factory | Build established: Mutant 4196 | -7/Factory | Identified exit to Storage 4196 | -7/Factory | Identified exit to Lower Caves 4224 | -7/Factory | System corruption reached 10% 4517 | -7/Factory | Build established: Scavenger-Mutant 4523 | -7/Factory | Entered Lower Caves 4528 | -7/Lower Caves | Arm. Treads stolen by Master Thief 4774 | -7/Lower Caves | Crushed by falling debris 5050 | -7/Lower Caves | Build established: Mutant 5201 | -7/Lower Caves | Found Alien Artifact 5201 | -7/Lower Caves | Identified Core Expander 5201 | -7/Lower Caves | Installed Core Expander, added new Weapon slot 5571 | -7/Lower Caves | Build established: Gunner 5674 | -7/Lower Caves | Discovered new exit (range 7) 5687 | -7/Lower Caves | Identified exit to Lower Caves 5689 | -7/Lower Caves | Entered another Lower Caves area 5706 | -7/Lower Caves | Discovered new exit (range 9) 6184 | -7/Lower Caves | Discovered new exit (range 8) 6197 | -7/Lower Caves | Identified exit to Data Miner 6235 | -7/Lower Caves | Entered Data Miner 6235 | -7/Data Miner | Discovered new exit (range 6) 6268 | -7/Data Miner | Met Data Miner 6307 | -7/Data Miner | Learned location of Section 7 (-2) 6307 | -7/Data Miner | Acquired the access code to Warlord's prototype stash 6334 | -7/Data Miner | Received God Mode back door access code from Data Miner 6402 | -7/Data Miner | Identified exit to Proximity Caves 6403 | -7/Data Miner | Entered Proximity Caves 6452 | -6/Proximity Caves | Escorted by Enhanced Grunt 6612 | -6/Proximity Caves | Learned Factory non-interactive machine intel 6619 | -6/Proximity Caves | Learned location of Extension (-6) 6792 | -6/Proximity Caves | Build established: Scavenger-Gunner 6921 | -6/Proximity Caves | Discovered new exit (range 5) 6926 | -6/Proximity Caves | Identified exit to Factory 6927 | -6/Proximity Caves | Entered Factory 6927 | -6/Factory | Evolved 2 slots: Power x1, Utility x1 6928 | -6/Factory | Loaded intel: 227 non-interactive machine locations 7613 | -6/Factory | Identified exit to Lower Caves 7613 | -6/Factory | Identified exit to Extension 7754 | -6/Factory | Build established: Tank 7814 | -6/Factory | Entered Lower Caves 7935 | -6/Lower Caves | Spotted B-75 Beast 7961 | -6/Lower Caves | Destroyed B-75 Beast 8116 | -6/Lower Caves | Attracted the attention of an 0b10 checkpoint 8324 | -6/Lower Caves | Discovered new exit (range 11) 8352 | -6/Lower Caves | Entered another Lower Caves area 8354 | -6/Lower Caves | Attracted the attention of an 0b10 outpost 8454 | -6/Lower Caves | Destroyed 12 combat bots 8456 | -6/Lower Caves | Lost 3 parts (3u) 8553 | -6/Lower Caves | Discovered new exit (range 12) 8827 | -6/Lower Caves | Build established: Scavenger-Gunner 8841 | -6/Lower Caves | Attracted the attention of an 0b10 checkpoint 8888 | -6/Lower Caves | Encountered a Warlord checkpoint 9268 | -6/Lower Caves | Discovered new exit (range 15) 9269 | -6/Lower Caves | Spotted RH-VCO(f) 9270 | -6/Lower Caves | Spotted G8-DXO(f) 9271 | -6/Lower Caves | Encountered a Master Thief 9271 | -6/Lower Caves | Encountered a Master Thief 9271 | -6/Lower Caves | Encountered a Master Thief 9271 | -6/Lower Caves | Spotted V2-EK2(f) 9271 | -6/Lower Caves | Spotted N4-RXC(f) 9271 | -6/Lower Caves | Spotted 1V-2RL(f) 9272 | -6/Lower Caves | Encountered a Master Thief 9272 | -6/Lower Caves | KE Penetrator stolen by Master Thief 9275 | -6/Lower Caves | Encountered a Master Thief 9275 | -6/Lower Caves | Prototype Leg stolen by Master Thief 9277 | -6/Lower Caves | Neutron Cannon stolen by Master Thief 9279 | -6/Lower Caves | Imp. Heavy Laser stolen by Master Thief 9288 | -6/Lower Caves | Destroyed 1V-2RL(f) 9356 | -6/Lower Caves | Learned Factory terminal intel 9401 | -6/Lower Caves | Entered Zion 9411 | -6/Zion | Identified exit to Deep Caves 9456 | -6/Zion | Given A8's code to call for help 9478 | -6/Zion | System corruption cleaned by Quarantine Array 9565 | -6/Zion | Build established: Scavenger-Mutant 9642 | -6/Zion | System corruption cleaned by Quarantine Array 9764 | -6/Zion | Discovered new exit (range 13) 10040 | -6/Zion | Learned location of Warlord (-5) 10682 | -6/Zion | Learned Factory trap positions 10895 | -6/Zion | Found GAL Module 11197 | -6/Zion | Build established: Scavenger-Gunner 11439 | -6/Zion | Enhanced Grunt warped into view, answering call for help 11440 | -6/Zion | Enhanced Grunt warped into view, answering call for help 11464 | -6/Zion | Entered Deep Caves 11464 | -6/Deep Caves | Accompanied by 2 allies 11751 | -6/Deep Caves | Build established: Scavenger-Mutant 11802 | -6/Deep Caves | Attacked by Z-Imprinter 11813 | -6/Deep Caves | Z-Facility disabled 11836 | -6/Deep Caves | Core integrity fell below 50% 11862 | -6/Deep Caves | Destroyed Z-Imprinter 11880 | -6/Deep Caves | Found Prototype Protection 11880 | -6/Deep Caves | Identified Zio. Weapon Casing 11892 | -6/Deep Caves | Lost 15 parts (2p6n4u3w) 12180 | -6/Deep Caves | Spotted as-20687 12206 | -6/Deep Caves | Exposed GOLEM chamber 12208 | -6/Deep Caves | Destroyed as-20687 12238 | -6/Deep Caves | Found Prototype Device 12238 | -6/Deep Caves | Identified Exp. Thermal Shield 12269 | -6/Deep Caves | Triggered Deep Caves wall 12269 | -6/Deep Caves | Spotted AS-50474 12278 | -6/Deep Caves | Core integrity fell below 20% 12294 | -6/Deep Caves | Destroyed AS-50474 12300 | -6/Deep Caves | Spotted AS-07378 12305 | -6/Deep Caves | Lost 4 parts (1n2u1w) 12307 | -6/Deep Caves | Spotted as-35461 12309 | -6/Deep Caves | Allies destroyed AS-07378 12315 | -6/Deep Caves | Destroyed 32 combat bots 12340 | -6/Deep Caves | Found GOLEM Unit 12627 | -6/Deep Caves | Build established: Mutant 13256 | -6/Deep Caves | Found GOLEM Unit 13260 | -6/Deep Caves | Found GOLEM Unit 13334 | -6/Deep Caves | Destroyed as-35461 13378 | -6/Deep Caves | Found Lightpack 2.0 13626 | -6/Deep Caves | Discovered new exit (range 7) 13635 | -6/Deep Caves | Entered Proximity Caves 13680 | -5/Proximity Caves | Build established: Scavenger-Tank 13910 | -5/Proximity Caves | Discovered new exit (range 14) 13968 | -5/Proximity Caves | Entered Factory 13968 | -5/Factory | Evolved 2 slots: Propulsion x1, Utility x1 13969 | -5/Factory | Loaded intel: 98 trap records 13970 | -5/Factory | Loaded intel: 26 terminal locations 14316 | -5/Factory | Identified exit to Upper Caves 14576 | -5/Factory | Found Prototype Processor 14576 | -5/Factory | Identified Exp. Targeting Computer 14723 | -5/Factory | Entered Upper Caves 14875 | -5/Upper Caves | Build established: Scavenger-Gunner 14908 | -5/Upper Caves | Attracted the attention of an 0b10 outpost 15178 | -5/Upper Caves | Discovered new exit (range 17) 15212 | -5/Upper Caves | Attracted the attention of an 0b10 checkpoint 15280 | -5/Upper Caves | Destroyed 7 combat bots 15289 | -5/Upper Caves | Entered another Upper Caves area 15495 | -5/Upper Caves | Discovered new exit (range 15) 15496 | -5/Upper Caves | Spotted M1-RS5(f) 15498 | -5/Upper Caves | Encountered a Master Thief 15498 | -5/Upper Caves | Encountered a Master Thief 15498 | -5/Upper Caves | Encountered a Master Thief 15498 | -5/Upper Caves | Spotted NO-RGK(f) 15498 | -5/Upper Caves | Spotted PU-BA2(f) 15498 | -5/Upper Caves | Spotted FF-TWG(f) 15499 | -5/Upper Caves | Encountered a Master Thief 15500 | -5/Upper Caves | Firepult stolen by Master Thief 15500 | -5/Upper Caves | GOLEM Unit stolen by Master Thief 15501 | -5/Upper Caves | Destroyed FF-TWG(f) 15504 | -5/Upper Caves | GOLEM Unit stolen by Master Thief 15508 | -5/Upper Caves | Destroyed M1-RS5(f) 15512 | -5/Upper Caves | Destroyed PU-BA2(f) 15597 | -5/Upper Caves | Entered Warlord 15657 | -5/Warlord | Discovered new exit (range 10) 16687 | -5/Warlord | Build established: Golem 16756 | -5/Warlord | Warlord's base attacked by MAIN.C 16814 | -5/Warlord | Met Warlord 16829 | -5/Warlord | Opened Warlord's prototype stash 16838 | -5/Warlord | Found Prototype Device 16838 | -5/Warlord | Identified Exp. Focal Shield 16857 | -5/Warlord | Found Prototype Reactor 16877 | -5/Warlord | Found Prototype Processor 16877 | -5/Warlord | Identified Exp. Core Analyzer 17106 | -5/Warlord | Warlord forces counterattacked 17129 | -5/Warlord | Build established: Gunner 17136 | -5/Warlord | Spotted Striker 17140 | -5/Warlord | Destroyed Striker 17141 | -5/Warlord | Spotted Executioner 17169 | -5/Warlord | Found Exp. Core Analyzer 17185 | -5/Warlord | Spotted Executioner 17199 | -5/Warlord | Spotted Striker 17206 | -5/Warlord | Spotted Executioner 17216 | -5/Warlord | Destroyed Executioner 17356 | -5/Warlord | Spotted Executioner 17356 | -5/Warlord | Entered Proximity Caves 17553 | -4/Proximity Caves | Attracted the attention of an 0b10 checkpoint 17743 | -4/Proximity Caves | Discovered new exit (range 7) 18055 | -4/Proximity Caves | Build established: Scavenger-Golem 18612 | -4/Proximity Caves | Entered Factory 18612 | -4/Factory | Evolved 2 slots: Propulsion x1, Utility x1 19145 | -4/Factory | Discovered new exit (range 15) 19337 | -4/Factory | Destroyed 7 combat bots 19408 | -4/Factory | Garrison activated, responded to threat 19643 | -4/Factory | Identified Vortex Chain Reactor 19656 | -4/Factory | Cargo convoy interrupted 19662 | -4/Factory | Spotted Executioner 19669 | -4/Factory | Destroyed Executioner 19671 | -4/Factory | System corruption reached 10% 19706 | -4/Factory | Destroyed 9 combat bots 19709 | -4/Factory | Garrison activated, responded to threat 19721 | -4/Factory | Core integrity fell below 50% 19740 | -4/Factory | Lost 18 parts (2p7n6u3w) 19754 | -4/Factory | Self-destructed Last Messages --------------- 19714_ Slug penetrates Wall. 19714_ Construction Platform disabled. 19714_ Slug penetrates Wall. 19714_ Penetrated by Slug. 19714_ Slug penetrates Wall. 19715_ Wall collapses. 19717_ Penetrated by Slug. 19717_ H-77 Assassin misfires. 19720_ Penetrated by Slug. 19722_ H-77 Assassin heat damages core (-23). 19723_ Penetrated by Slug. 19731_ UC8VA|Y3XIP 19749_ System corrupted: Firepult rejected. 19750_ Enh. Biometal Leg destroyed. 19753_ W-44 Eye sends out distress signal. Map ----- +----------------------------------------------------+ | ?????????????????????????????????????????????????? | | ?????????????????????????????????????????????????? | | ?????????????????????????????????????????????????? | | ?????????????????????????????????????????????????? | | ?????????????????????????????????????????????????? | | ?????????????????????????????????????????????????? | | ?????????????????????????????????????????????????? | | ?????????????????????????????????????????????????? | | ?????????????????????????????????????????????????? | | ?????????????????????????????????????????????????? | | ?????????????????????######??????????????????????? | | ????????????????????# #??????????????????????? | | ???????????????????? #??????????????????????? | | ???????????????????? +??????????????????????? | | ????????????????????? #???????#??????????????? | | ????????????????????? ??????? #??????????????? | | ?????????????????????# #?????? #??????????????? | | ???????############### #?????? ???????????????? | | ???????# ## #?????? ???????????????? | | ???????# """""" ## #?????? ???????????????? | | ???????# """"""" ]## ##?????+#???????????????? | | ???????# """"""" # ###### ##??????????????? | | ?????# """"""" # #??????????????? | | ???# / #??????????????? | | % ?# """"""" # #??????????????? | | * #?# """"""" # @#####*% #??????????????? | | = ### """""" ###/## ##%[ ##?????????????? | | ?# """"""" # [=[ *[*[%[! #?#?????? ???? | | ??# # =%=%%g=#| ! =#### ??? | | "#??# " [!!!=g=u %%=%%= ??? | | #???###########+## | =!!!%%|=[|!###### ???? | | #?????????????# ##[%!==%[=*% [=%##????????????? | | ############??# ##=[ !![/!### ####????????????? | | +#### #??# !!!=*#?#k#???????????????? | | #??#### !!!*!#?#!#???????????????? | | #?????####"###"#?#%#???????????????? | | #????????###?# ## #???????????????? | | H #????######??# ###=###?????????????? | | % #????# """ ?### ! #?????????????? | | =[[!! #????# """ #### #?????????????? | | !%=|%! #????# """ + +?????????????? | | ## * #????# # #?????????????? | | #### ###????# # #?????????????? | | #??# [###????# ?# ##?????????????? | | #??# %#[#????######## #??????????????? | | #??# |%=##############[ ##?????????????? | | #??# !|[ = =!=%![ +?????????????? | | = #??# !%[% !! %%*! ##?????????????? | | %* #?## [ *!]!% ! !!![!] ######??????????????? | | #?## ! !]! %* !!!%]] #???????????????????? | +----------------------------------------------------+ Best States ------------- Heat Dissipation 108 Energy Generation 55 Energy Capacity 1700 Matter Stores 300 Matter Capacity 300 Sight Range 22 Terrain Scan Range 20 Terrain Scan Density 110 Jamming Range 14 Cloak Strength 2 Armor Coverage 400 Resistance: KI 30 Resistance: TH 30 Resistance: EX 25 Resistance: EM 25 Resistance: I 15 Resistance: S 15 Resistance: P 15 Power Shielding 33 Weapon Shielding 100 Weapon Cycling 20 Evasion (%) 55 Targeting Accuracy 12 Target Analysis 5 Core Analysis 8 Armor Integrity Analysis 30 Recoil Reduction 4 Energy Filtering 50 Particle Charging 20 Salvage Targeting 8 Item Schematics ----------------- Lrg. Storage Unit | -10/Materials | Hacked Imp. Signal Interpreter | -7/Factory | Scanalyzed Combat Drone Bay | -7/Data Miner | Free Lgt. Regenerative Plating | -7/Data Miner | Free Biomechanical Wings | -7/Data Miner | Free Gravity Neutralizer | -7/Data Miner | Free Imp. Heavy Laser | -7/Data Miner | Free Arm. Medium Treads | -7/Data Miner | Free Imp. Kinecellerator | -7/Data Miner | Free Tesla Rifle | -7/Data Miner | Free Enh. Gauss Cannon | -7/Data Miner | Free Point Defense Array | -7/Data Miner | Free Robot Schematics ------------------ M-28 Smith | -7/Data Miner | Free P-60 Hacker | -7/Data Miner | Free S-27 Virus | -7/Data Miner | Free R-10 Processor | -7/Data Miner | Free I-36 Angel | -7/Data Miner | Free L-41 Fighter | -7/Data Miner | Free Fabricated ------------ Nothing Alien Tech Used ----------------- Core Expander Achievements -------------- None Challenges ------------ None Game ------ Seed DeuteriumAssemblyPick Manual? 0 Play Time 02:14:07 Cumulative 306.7 hours Start 2022.04.11 @ 15:29:52 End 2022.04.11 @ 17:54:10 Sessions 1 Manual Loads 0 Difficulty Rogue Special Mode None Game No. 341 Rogue 341 Adventurer 0 Explorer 0 Win Type - Total 27 Types 16/3/2/1/2/0/3/0/0 Lore% 84 Gallery% 81 Achievement% 80 Wizard Run 0 Options --------- ASCII 0 Keyboard 0 Movement Arrows Keybinds 0 Fullscreen 1 Font 18/SmallcapsGlow Map View 76x50 Tactical HUD 1 Map Filters NONE Filters NONE Steam 1 RUN: 8554fea3-16a7-4e6b-b757-b457fc2c2e8f